Cogmind - Beta 12 @@@ ROGUE MODE // 2023.11.10 @ 21:28:08 Player: FrostySpirit Result: Self-destructed Performance ------------- Evolutions (1) 500 Regions Visited (4) 800 Robots Destroyed (8) 40 Value Destroyed (157) 157 Prototype IDs (0) 0 Alien Tech Used (0) 0 Bonus (0) 0 TOTAL SCORE: 1497 Bonus ------- None Cogmind --------- Core Integrity 336/400 Matter 293/300 Energy 119/250 System Corruption 0% Temperature Cool (0) Movement Rolling (80) Location -9/Mines Parts ------- > --- POWER (1) -------- Ion Engine > --- PROPULSION (3) --- Wheel Wheel Wheel > --- UTILITY (3) ------ Cooling System Small Storage Unit ECM Suite > --- WEAPON (2) ------- Medium Laser Medium Laser > --- INVENTORY (8) ---- Light Ion Engine Hover Unit Flight Unit Huge Storage Unit Terrain Scanner Slug Cannon Grenade Launcher Signal Generator Peak State ------------ > --- POWER ------------ Ion Engine > --- PROPULSION ------- Wheel Wheel Wheel > --- UTILITY ---------- Cooling System Small Storage Unit ECM Suite > --- WEAPON ----------- Medium Laser Medium Laser > --- INVENTORY -------- Light Ion Engine Hover Unit Flight Unit Huge Storage Unit Terrain Scanner Slug Cannon Grenade Launcher Signal Generator [Rating: 11] Favorites ----------- Power Ion Engine Engine Ion Engine Propulsion Wheel Wheel Wheel Utility Small Storage Unit Device ECM Suite Storage Small Storage Unit Weapon Medium Laser Energy Gun Medium Laser Ballistic Gun Assault Rifle Build | -11 -10 -10 -9 -9 ------- Run | Jun Mat Min Mat Min Slots Evolved 2 | . . . 2 . Power . | . . . . . Propulsion 1 | . . . 1 . Utility 1 | . . . 1 . Weapon . | . . . . . Parts Attached 13 | 7 . . 5 1 Power 1 | 1 . . . . Engine 1 | 1 . . . . Core . | . . . . . Reactor . | . . . . . Propulsion 4 | 2 . . 2 . Treads . | . . . . . Leg . | . . . . . Wheel 4 | 2 . . 2 . Hover . | . . . . . Flight . | . . . . . Utility 5 | 1 . . 3 1 Device 3 | . . . 2 1 Storage 2 | 1 . . 1 . Processor . | . . . . . Hackware . | . . . . . Protection . | . . . . . Artifact . | . . . . . Weapon 3 | 3 . . . . Energy Gun 2 | 2 . . . . Energy Cannon . | . . . . . Ballistic Gun 1 | 1 . . . . Ballistic Cannon . | . . . . . Launcher . | . . . . . Special Weapon . | . . . . . Impact Weapon . | . . . . . Slashing Weapon . | . . . . . Piercing Weapon . | . . . . . Special Melee Weapon . | . . . . . Unidentified Prototypes . | . . . . . Parts Lost 1 | . . . 1 . Power . | . . . . . Propulsion 1 | . . . 1 . Utility . | . . . . . Weapon . | . . . . . Highest Loss Streak 1 | . . . 1 . To Critical Strikes . | . . . . . Average Slot Usage (%) 89 | . 85 85 82 99 Engine 12 | . 14 14 11 11 Wheel 29 | . 28 28 25 33 Device 9 | . . . 12 21 Storage 12 | . 14 14 11 11 Energy Gun 24 | . 28 28 22 22 Naked Turns . | . . . . . Heaviest Build 18 | 14 14 14 17 18 Greatest Support 30 | 20 20 20 30 30 Greatest Overweight (x) 1 | 1 . . 1 . Average Overweight (x) . | . . . . . Largest Inventory Capacity 25 | 8 8 8 25 8 Average Capacity 7 | 7 8 8 8 8 Most Carried 8 | 4 8 8 8 8 Average Carried 7 | 2 6 7 7 8 Final Capacity 8 | 8 8 8 8 8 Final Carried 8 | 4 8 8 8 8 Class Distribution -------------------- 100% | Mutant Dominant Class ---------------- Mutant | -10/Materials Mutant | -10/Mines Mutant | -9/Materials Mutant | -9/Mines Resources | -11 -10 -10 -9 -9 ----------- Run | Jun Mat Min Mat Min Matter Collected 308 | 240 30 . 5 33 Remotely . | . . . . . Salvage Created 251 | . 87 . 133 31 Parts 19 | . 8 . 8 3 Haulers Intercepted 1 | . 1 . . . Recyclers Shooed 1 | . 1 . . . Parts Field Recycled . | . . . . . Retrieved Matter . | . . . . . Parts Self-Destructed . | . . . . . Prevented . | . . . . . Kills | -11 -10 -10 -9 -9 ------- Run | Jun Mat Min Mat Min Combat Hostiles Destroyed 6 | . 3 . 2 1 Guns 6 | . 3 . 2 1 Classes Destroyed 5 | . 2 . 2 1 Worker 1 | . . . 1 . Hauler 1 | . 1 . . . Swarmer 3 | . 3 . . . Grunt 1 | . . . . 1 Sentry 2 | . . . 2 . Best Kill Streak 3 | . 3 . 2 1 Combat Bots Only 3 | . 3 . 2 1 Max Kills in Single Turn 1 | . 1 . 1 1 Gunslinging . | . . . . . Exploded . | . . . . . Melee . | . . . . . Uniques/NPCs Destroyed . | . . . . . Combat | -11 -10 -10 -9 -9 -------- Run | Jun Mat Min Mat Min Damage Taken 362 | . 59 . 177 126 Core 96 | . 32 . 15 49 Absorbed by Shields . | . . . . . Core Remaining (%) 93 | 100 . 87 . . Volleys Fired 27 | . 10 . 10 7 Largest 2 | . 2 . 2 1 Hottest 100 | . 100 . 100 50 Shots Fired 47 | . 20 . 20 7 Gun 47 | . 20 . 20 7 Cannon . | . . . . . Launcher . | . . . . . Special . | . . . . . Kinetic . | . . . . . Thermal 47 | . 20 . 20 7 Explosive . | . . . . . Electromagnetic . | . . . . . Robot Hit Streak 12 | . 11 . 12 3 Robot Miss Streak 3 | . 3 . 1 2 Penetration Max . | . . . . . Secondary Targets . | . . . . . Shots Hit Robots 29 | . 14 . 11 4 Core Hits 15 | . 5 . 5 5 Critical Kills . | . . . . . Critical Parts Destroyed . | . . . . . Critical Strikes 3 | . 2 . 1 . Burn 3 | . 2 . 1 . Melee Attacks . | . . . . . Impact . | . . . . . Slashing . | . . . . . Piercing . | . . . . . Sneak Attacks . | . . . . . Combat Hostiles . | . . . . . Follow-up Attacks . | . . . . . Damage Inflicted 397 | . 190 . 137 70 Guns 377 | . 190 . 137 50 Cannons . | . . . . . Explosions . | . . . . . Melee . | . . . . . Ramming 20 | . . . . 20 Kinetic . | . . . . . Thermal 377 | . 190 . 137 50 Explosive . | . . . . . Electromagnetic . | . . . . . Impact . | . . . . . Slashing . | . . . . . Piercing . | . . . . . Highest Corruption . | . . . . . Average Corruption . | . . . . . Corruption Purged . | . . . . . Corruption Blocked . | . . . . . Overload Shots . | . . . . . Overflow Damage . | . . . . . Projectiles . | . . . . . Explosions . | . . . . . Melee . | . . . . . Knockbacks . | . . . . . Impact . | . . . . . Kinetic . | . . . . . Secondary . | . . . . . Self-Inflicted Damage 8 | . . . . 8 Shots . | . . . . . Rammed 4 | . . . . 4 Targets Rammed 4 | . . . . 4 Kicked . | . . . . . Crushed . | . . . . . Highest Temperature 163 | . 137 . 163 . Average Temperature 65 | . 60 . 74 . Received Heat Transfer 108 | . . . 45 63 Siege Activations . | . . . . . Robots Corrupted . | . . . . . Combat Hostiles . | . . . . . Parts Fried . | . . . . . Impact Corruptions . | . . . . . Robots Melted 1 | . 1 . . . Combat Hostiles . | . . . . . Parts Melted 6 | . 3 . 3 . Heat Transferred 1332 | . 703 . 481 148 Parts Sabotaged . | . . . . . Parts Stolen . | . . . . . Parts Stripped . | . . . . . Power Chain Reactions . | . . . . . Missiles Intercepted . | . . . . . Alert | -11 -10 -10 -9 -9 ------- Run | Jun Mat Min Mat Min Peak Influence 92 | . 92 35 84 55 Initial 35 | . . 35 13 32 Average 40 | . 40 35 67 32 Maximum Alert Level . | . . . . . Low Security (%) 100 | 100 100 100 100 100 Level 1 . | . . . . . Level 2 . | . . . . . Level 3 . | . . . . . Level 4 . | . . . . . Level 5 . | . . . . . High Security . | . . . . . Max Security . | . . . . . Squads Dispatched . | . . . . . Investigation . | . . . . . Extermination . | . . . . . Reinforcement . | . . . . . Assault . | . . . . . Garrison . | . . . . . Intercept . | . . . . . Searches Triggered . | . . . . . Construction Impeded . | . . . . . Haulers Reinforced . | . . . . . Active Scanning Responses . | . . . . . Cargo Convoy Interrupts . | . . . . . Stealth | -11 -10 -10 -9 -9 --------- Run | Jun Mat Min Mat Min Distress Signals . | . . . . . Communications Jammed . | . . . . . Distress Signals . | . . . . . Times Spotted 11 | . 5 1 2 3 Peak Tracking Total 6 | . 6 . 2 3 Tactical Retreats . | . . . . . Traps | -11 -10 -10 -9 -9 ------- Run | Jun Mat Min Mat Min Traps Triggered . | . . . . . Indirectly . | . . . . . Trap Hack Attempts . | . . . . . Triggered . | . . . . . Disarmed . | . . . . . Reprogrammed . | . . . . . Reused . | . . . . . Traps Extracted . | . . . . . Installed . | . . . . . Triggered . | . . . . . Machines | -11 -10 -10 -9 -9 ---------- Run | Jun Mat Min Mat Min Machines Disabled . | . . . . . Max in Single Turn . | . . . . . Machines Repaired . | . . . . . Machines Sabotaged . | . . . . . Overloaded Fab Kills . | . . . . . Hacking | -11 -10 -10 -9 -9 --------- Run | Jun Mat Min Mat Min Machines Accessed 4 | . 2 . 2 . Terminals 2 | . 1 . 1 . Fabricators . | . . . . . Repair Stations . | . . . . . Recycling Units 1 | . 1 . . . Scanalyzers 1 | . . . 1 . Garrison Access . | . . . . . Total Hacks 9 | . 4 . 5 . Successful 1 | . 1 . . . Failed 8 | . 3 . 5 . Catastrophic . | . . . . . Database Lockouts . | . . . . . Manual 3 | . 2 . 1 . Terminals 6 | . 2 . 4 . Fabricators . | . . . . . Repair Stations . | . . . . . Recycling Units 2 | . 2 . . . Scanalyzers 1 | . . . 1 . Garrison Access . | . . . . . Terminal Hacks . | . . . . . Fabricator Hacks . | . . . . . Repair Station Hacks . | . . . . . Recycling Unit Hacks 1 | . 1 . . . Report Inventory 1 | . 1 . . . Scanalyzer . | . . . . . Garrison Access Hacks . | . . . . . Unauthorized Hacks . | . . . . . Terminals . | . . . . . Fabricators . | . . . . . Repair Stations . | . . . . . Recycling Units . | . . . . . Scanalyzers . | . . . . . Garrison Access . | . . . . . Data Cores Recovered . | . . . . . Used . | . . . . . Hacking Detections 4 | . 2 . 2 . Full Trace Events 1 | . . . 1 . Feedback Events . | . . . . . Feedback Blocked . | . . . . . Robot Schematics Acquired . | . . . . . Robots Built . | . . . . . Authchips . | . . . . . Time . | . . . . . Total Robot Build Rating . | . . . . . Part Schematics Acquired . | . . . . . Parts Built . | . . . . . Authchips . | . . . . . Time . | . . . . . Total Part Build Rating . | . . . . . Parts Repaired . | . . . . . Time . | . . . . . Parts Recycled . | . . . . . Recycled Matter . | . . . . . Retrieved Matter . | . . . . . Retrieved Components . | . . . . . Parts Scanalyzed . | . . . . . Part Schematics Acquired . | . . . . . Parts Damaged . | . . . . . Bothacking | -11 -10 -10 -9 -9 ------------ Run | Jun Mat Min Mat Min Used RIF Installer . | . . . . . Robots Hacked . | . . . . . Non-combat . | . . . . . Combat . | . . . . . Robot Hacks Applied . | . . . . . Relay Couplers Released . | . . . . . Fabnet Peak Effective % . | . . . . . Robots Rewired . | . . . . . Allies Hacked . | . . . . . Hacks Repelled . | . . . . . Allies | -11 -10 -10 -9 -9 -------- Run | Jun Mat Min Mat Min Total Allies 3 | . . . . 3 Largest Group 3 | . . . . 3 Highest-Rated Group 40 | . . . . 40 Highest-Rated Ally 16 | . . . . 16 Total Orders . | . . . . . Ally Attacks 1 | . . . . 1 Total Damage . | . . . . . Kills . | . . . . . Allies Corrupted . | . . . . . Allies Melted . | . . . . . Intel | -11 -10 -10 -9 -9 ------- Run | Jun Mat Min Mat Min Robot Analysis Total . | . . . . . Derelict Logs Recovered 1 | . . 1 . . Drone Launches . | . . . . . Drone Recoveries . | . . . . . Exploration | -11 -10 -10 -9 -9 ------------- Run | Jun Mat Min Mat Min Turns Passed 875 | 55 238 129 186 267 Spaces Moved 927 | 51 253 158 162 303 Core 7 | 7 . . . . Treads . | . . . . . Legs . | . . . . . Wheels 920 | 44 253 158 162 303 Hover . | . . . . . Flight . | . . . . . Fastest Speed 50 | 50 80 80 80 80 Average Speed 80 | 80 80 80 82 80 Slowest Speed 100 | 100 80 80 95 80 Overloaded Moves . | . . . . . Propulsion Burnouts . | . . . . . Robots Hopped . | . . . . . Cave-ins Triggered . | . . . . . Exploration Rate (%) 22 | 3 23 32 11 45 Regions Visited 4 Branch Regions 2 Pre-discovered Areas 1 | . . 1 . . Known Exits Taken . | . . . . . Unknown Exits Taken 4 | 1 1 1 1 . Scrap Searched . | . . . . . Spaces Dug . | . . . . . Terrain Destroyed . | . . . . . Melee . | . . . . . Projectile . | . . . . . AOE . | . . . . . Terrain Rammed . | . . . . . Walls Destroyed . | . . . . . Machines Disabled . | . . . . . Actions | -11 -10 -10 -9 -9 --------- Run | Jun Mat Min Mat Min Total 1004 | 61 268 160 194 321 Wait 17 | . 2 1 13 1 Move 923 | 50 252 157 161 303 Hop . | . . . . . Pick Up 13 | 4 4 1 2 2 Fast Attach 11 | 6 . . 4 1 Attach 1 | . . . 1 . Detach 1 | . . . 1 . Swap 1 | 1 . . . . Drop 6 | . . 1 2 3 Fire 27 | . 10 . 10 7 Melee . | . . . . . Ram 4 | . . . . 4 Kick . | . . . . . Crush . | . . . . . Escape Stasis . | . . . . . Rewire . | . . . . . Trap . | . . . . . Miscellaneous . | . . . . . Route ------- -11/Junkyard -10/Materials -10/Mines -9/Materials -9/Mines (discovered 1 exit: [*Mat]) History --------- Turn | Location | Event 20 | -11/Junkyard | Discovered new exit (range 16) 56 | -11/Junkyard | Entered Materials 273 | -10/Materials | Discovered new exit (range 13) 294 | -10/Materials | Entered Mines 304 | -10/Mines | Build established: Mutant 306 | -10/Mines | Met a Derelict bent on vengeance 311 | -10/Mines | A weapon hastily lodged in a ceiling crevice suddenly fell to the ground 410 | -10/Mines | Learned location of Zion (-7) 418 | -10/Mines | Discovered new exit (range 6) 423 | -10/Mines | Entered Materials 423 | -9/Materials | Evolved 2 slots: Propulsion x1, Utility x1 513 | -9/Materials | Discovered new exit (range 16) 609 | -9/Materials | Entered Mines 618 | -9/Mines | Met a Derelict testing a Signal Generator 618 | -9/Mines | Discovered new exit (range 7) 625 | -9/Mines | Found Signal Generator 675 | -9/Mines | Assisted by bots powering up and referring to "LRC-V3" 876 | -9/Mines | Self-destructed Last Messages --------------- 00643_ Slammed into K-01 Serf. 00643_ Med. Laser broken. 00643_ Destabilizing: Short circuit. 00644_ Slammed into R-06 Scavenger. 00645_ K-01 Serf cleans the Core Extractor. 00675_ Trooper 2a: "Hello LRC-V3. What is your command?" 00675_ Mercenary 2a: "Hello LRC-V3. What is your command?" 00675_ Trooper 2b: "Hello LRC-V3. What is your command?" 00695_ T-07 Excavator is excavating. 00721_ Acquired 30 matter. 00765_ Slammed into T-07 Excavator. 00765_ Heat Sink broken. 00765_ Destabilizing: Short circuit. 00812_ K-01 Serf collects debris. 00819_ Dropped Broken Heat Sink. 00821_ K-01 Serf collects debris. 00822_ Acquired Cooling System. 00824_ K-01 Serf collects debris. 00848_ Acquired 3 matter. 00868_ G-34 Mercenary destroyed. Map ----- +----------------------------------------------------+ | ????????????????????????????# #???????? | | ????????????????????????????# #???????? | | ????????????????????????????# #???????? | | ????????????????????????????# #???????? | | ????????????????????????????# #???????? | | ????????????????????????????# #???????? | | ????????????????????????????# #???????? | | ????????????????????######### #???????? | | ??????????????????# #???????? | | ????????????????????######## ##???????? | | ???????????????????????????# #????????? | | ????????????????????? ????# #????????? | | ???????????????????? ????# #????????? | | ???????????????????? ????# #????????? | | ????????????????????? ???# #????????? | | ?????????????????????#g ???# #????????? | | ?????????????????????# [???# #????????? | | ??????????????????####g%???# #?#####??? | | ??????????????????? =#??#g### ##?? | | ????????????????????## ###g## #?? | | ???????????????????## g #?? | | ??????????????????## g #?? | | ??????????????????# #?? | | ??????????????????# ## #?? | | ??????????????????## #### ##?? | | ???????????????????# @ #??#####??? | | ??????????????????# ### #????????? | | ????????????????# #??## #???????? | | ???????????????# #????# #??????? | | ???????????????######?????# #??????? | | ??????????????????????????## ##??????? | | ????????????????????????????###???????? | | ??????????????????????????????????????? | | | | | | | | | | | | | | | | | | | | | | | | | | | | | | | | | | | +----------------------------------------------------+ Best States ------------- Heat Dissipation 50 Energy Generation 10 Energy Capacity 250 Matter Stores 300 Matter Capacity 300 Sight Range 16 Terrain Scan Density 10 ECM Strength 1 Evasion (%) 44 Item Schematics ----------------- None Robot Schematics ------------------ None Fabricated ------------ Nothing Alien Tech Used ----------------- None Achievements -------------- None Challenges ------------ None Game ------ Seed ModifiedVortexKatana Manual? 0 Play Time 00:13:08 Cumulative 33.5 hours Start 2023.11.10 @ 21:17:46 End 2023.11.10 @ 21:28:08 Sessions 1 Manual Loads 0 Difficulty Rogue Special Mode None Game No. 57 Rogue 57 Adventurer 0 Explorer 0 Win Type - Total 0 Types 0/0/0/0/0/0/0/0/0 Lore% 24 Gallery% 38 Achievement% 26 Wizard Run 0 Options --------- ASCII 0 Keyboard 1 Movement Numpad Keybinds 0 Fullscreen 1 Font 18/TerminusBold Map View 76x50 Tactical HUD 1 Map Filters NONE Filters NONE Steam 1 RUN: 13d17248-1270-4434-9eb4-b12f8b8a40fe